fUSD/lending_fUSD_20240815
["ID","MTS","AMOUNT","RATE_DAILY","PERIOD"]
[334983505,1723710691444,-20786.9781491,0.00024498,2]
[334983506,1723710691454,-313.12089934,0.00024498,2]
[334983507,1723710691464,-309.39232401,0.00024498,2]
[334983508,1723710691473,-16291.8964297,0.00024498,2]
[334983509,1723710691484,-13657.3960324,0.00024498,2]
[334983510,1723710691493,-11022.8956351,0.00024498,2]
[334983511,1723710691503,-8388.3952379,0.00024498,2]
[334983512,1723710691512,-5753.8948406,0.00024498,2]
[334983513,1723710691522,-3119.3944433,0.00024498,2]
[334983514,1723710691532,-300.85253603,0.00024499,7]
[334983515,1723710691541,-500.0,0.00024499,7]
[334983516,1723710691551,-500.0,0.00024499,7]
[334983517,1723710691560,-500.0,0.00024499,7]
[334983518,1723710691570,-610.7298557,0.00024499,7]
[334983519,1723710691579,-500.0,0.00024499,7]
[334983520,1723710691589,-500.0,0.00024499,7]
[334983521,1723710691605,-500.0,0.00024499,7]
[334983522,1723710691614,-245.06092138,0.00024499,7]
[334983523,1723710691624,-500.0,0.00024499,7]
[334983524,1723710691635,-500.0,0.00024499,7]
[334983525,1723710691645,-500.0,0.00024499,7]
[334983526,1723710691655,-500.0,0.00024499,7]
[334983527,1723710691665,-556.64995065,0.00024499,7]
[334983528,1723710691675,-522.7022621,0.00024499,7]
[334983529,1723710691686,-500.0,0.00024499,2]
[334983530,1723710691695,-500.0,0.00024499,2]
[334983531,1723710691705,-500.0,0.00024499,2]
[334983532,1723710691714,-500.0,0.00024499,7]
[334983533,1723710691723,-500.0,0.00024499,2]
[334983534,1723710691733,-500.0,0.00024499,7]
[334983535,1723710691742,-500.0,0.00024499,2]
[334983536,1723710691751,-500.0,0.00024499,7]
[334983537,1723710691760,-500.0,0.00024499,2]
[334983538,1723710691771,-500.0,0.00024499,7]
[334983539,1723710691780,-500.0,0.00024499,2]
[334983540,1723710691789,-500.0,0.00024499,7]
[334983541,1723710691798,-500.0,0.00024499,2]
[334983542,1723710691808,-500.0,0.00024499,7]
[334983543,1723710691817,-500.0,0.00024499,7]
[334983544,1723710691827,-500.0,0.00024499,7]
[334983545,1723710691836,-500.0,0.00024499,7]
[334983546,1723710691845,-500.0,0.00024499,7]
[334983547,1723710691854,-150.21783203,0.00024499,7]
[334983548,1723710691864,-500.0,0.00024499,7]
[334983549,1723710691873,-516.51380637,0.00024499,7]
[334983550,1723710691883,-450.93784733,0.00024499,7]
[334983551,1723710691892,-531.82499134,0.00024499,7]
[334983552,1723710691901,-501.62994454,0.00024499,7]
[334983553,1723710691910,-601.94255776,0.00024499,7]
[334983554,1723710691920,-249089.79550257,0.00024499,2]
[334983555,1723710691930,-6639316.14834881,0.000245,5]
[334983556,1723710692298,-22512.11144,0.000245,5]
[334983557,1723710692323,-589.26,0.00023999,7]
[334983558,1723710692332,-1148.48,0.00023999,2]
[334983559,1723710692342,-1092.5,0.00024382,7]
[334983560,1723710692351,-10223.08296276,0.000245,5]
[334983561,1723710692362,-7104.61058235,0.000245,5]
[334983562,1723710692376,-1038.51813156,0.000245,5]
[334983563,1723710692883,-500.0,0.00023835,7]
[334983564,1723710692893,-500.0,0.00024114,7]
[334983565,1723710692903,-305.04033308,0.000245,5]
[334983566,1723710693574,-316.83560636,0.00013698,2]
[334983567,1723710693584,-95.80439464,0.00014925,2]
[334983568,1723710693597,-10620.16901075,0.00014925,2]
[334983569,1723710693970,-162.45,0.00013973,2]
[334983570,1723710693980,-145.52204689,0.00014925,2]
[334983571,1723710693989,-162.45,0.00020447,2]
[334983572,1723710693999,-347.12248344,0.00021808,2]
[334983573,1723710696482,150.5,0.00024388,120]
[334983574,1723710696507,151.9,0.00024388,120]
[334983575,1723710696550,154.9,0.00024388,120]
[334983576,1723710696579,150.5,0.00024388,120]
[334983577,1723710696606,158.06,0.00024378,120]
[334983578,1723710696655,150.5,0.00024378,120]
[334983579,1723710696711,150.5,0.00024368,120]
[334983580,1723710696843,150.5,0.0002448,120]
[334983581,1723710696930,150.5,0.0002447,120]
[334983582,1723710696994,150.5,0.0002446,120]
[334983583,1723710697041,197.49,0.0002448,120]
[334983599,1723710781075,550.0,0.0001,2]
[334983600,1723710782217,600.0,0.00012,2]
[334983601,1723710793430,227.8,0.0002449,120]
[334983609,1723710902834,166.39780491,0.00012966,2]
[334983610,1723711102953,220.28,0.00024936,120]
[334983612,1723711268969,2532.87,0.00025,60]
[334983624,1723711808490,5000.0,0.00012613,2]
[334983628,1723711832011,-155.0,0.00013001,2]
[334983629,1723711832020,-2386.36839346,0.00013052,2]
[334983630,1723711832029,-300.0,0.00013085,2]
[334983631,1723711832041,-200.0,0.000131,2]
[334983632,1723711832050,-155.0,0.00013292,2]
[334983633,1723711832059,-370.75591567,0.00013688,2]
[334983634,1723711832069,-415.01059966,0.00013698,2]
[334983635,1723711832080,-236.36319912,0.0001385,2]
[334983636,1723711832090,-536.3843632,0.0001385,2]
[334983637,1723711832099,-380.35876131,0.0001385,2]
[334983638,1723711832108,-305.05224028,0.0001385,2]
[334983639,1723711832118,-155.0,0.0001385,2]
[334983640,1723711832127,-199.12,0.00013851,2]
[334983641,1723711832137,-357.4813523,0.00013851,2]
[334983642,1723711832146,-166.33381801,0.00013851,2]
[334983643,1723711832155,-526.89163581,0.0001387,2]
[334983644,1723711832164,-154.5,0.00013973,2]
[334983645,1723711832182,-650.0,0.00014,2]
[334983646,1723711832191,-155.0,0.00014234,2]
[334983647,1723711832201,-420.0,0.00014349,2]
[334983648,1723711832211,-253.22695752,0.00014517,2]
[334983649,1723711832220,-531.26864504,0.00014517,2]
[334983650,1723711832229,-531.26864504,0.00014517,2]
[334983651,1723711832238,-155.0,0.00014517,2]
[334983652,1723711832248,-275.63675414,0.00014681,2]
[334983653,1723711832258,-271.70472441,0.00014753,2]
[334983654,1723711832267,-12566.12808503,0.00014753,2]
[334983655,1723711832279,-2475.883476,0.00014753,2]
[334983656,1723711832290,-4690.27047258,0.00014753,2]
[334983657,1723711832299,-306.9434504,0.00014782,2]
[334983658,1723711832309,-546.93040052,0.00014782,2]
[334983659,1723711832319,-546.93040052,0.00014782,2]
[334983660,1723711832328,-634.6392987,0.000149,2]
[334983661,1723711832337,-1011.86,0.00015,2]
[334983663,1723711832346,-587.0,0.00015735,2]
[334983664,1723711832355,-700.0,0.00016,2]
[334983666,1723711832365,-150.0,0.00016105,2]
[334983668,1723711832374,-1306.44389609,0.00016106,2]
[334983669,1723711832401,-11758.95560395,0.00016106,2]
[334983670,1723711832411,-5833.63,0.00016116,2]
[334983671,1723711832421,-1011.86,0.00016445,2]
[334983672,1723711832430,-186.44,0.00016712,2]
[334983673,1723711832439,-794.0,0.00017214,2]
[334983674,1723711832448,-794.0,0.00017214,2]
[334983675,1723711832457,-823.0,0.00017254,2]
[334983676,1723711832466,-1000.0,0.00017819,2]
[334983677,1723711832476,-203.91,0.0001786,2]
[334983678,1723711832485,-1011.86,0.0001789,2]
[334983679,1723711832494,-750.0,0.00018,2]
[334983680,1723711832503,-164.59,0.0001806,2]
[334983681,1723711832512,-794.0,0.00018075,2]
[334983682,1723711832521,-189.58,0.00018411,2]
[334983683,1723711832530,-2534.18383302,0.000186,2]
[334983684,1723711832540,-7008.83,0.00018729,2]
[334983685,1723711832550,-2751.0,0.00018744,2]
[334983686,1723711832559,-1152.0,0.0001892,2]
[334983687,1723711832568,-310.0,0.00019,2]
[334983688,1723711832579,-200.0,0.00019061,2]
[334983689,1723711832589,-1011.86,0.00019335,2]
[334983690,1723711832598,-1005.36,0.00019339,2]
[334983691,1723711832608,-2729.36932901,0.000199,2]
[334983692,1723711832617,-220.28,0.00019949,2]
[334983693,1723711832626,-800.0,0.0002,2]
[334983694,1723711832636,-1000.0,0.00020046,2]
[334983695,1723711832645,-500.0,0.00020066,2]
[334983696,1723711832655,-500.0,0.00020067,2]
[334983697,1723711832664,-500.0,0.00020099,2]
[334983698,1723711832674,-500.0,0.00020112,2]
[334983699,1723711832684,-900.0,0.00020115,2]
[334983700,1723711832694,-203.91,0.00020123,2]
[334983701,1723711832704,-500.0,0.00020225,2]
[334983702,1723711832713,-300.0,0.00020279,2]
[334983703,1723711832723,-500.0,0.00020313,2]
[334983704,1723711832732,-500.0,0.00020324,2]
[334983705,1723711832742,-500.0,0.00020362,2]
[334983706,1723711832752,-500.0,0.00020493,2]
[334983707,1723711832762,-341.04177206,0.00020513,2]
[334983708,1723711838305,-301.3119806,0.00013052,2]
[334983709,1723711838315,-358.68801941,0.00013698,2]
[334983710,1723711838624,-80.57684099,0.00013698,2]
[334983711,1723711838633,-316.83560636,0.00013851,2]
[334983712,1723711838643,-2438.864123,0.00014444,2]
[334983713,1723711838653,-158.95822794,0.00020513,2]
[334983714,1723711838663,-166.38,0.00020527,2]
[334983715,1723711838672,-173.07,0.00020548,2]
[334983716,1723711838683,-500.0,0.00020561,2]
[334983717,1723711838692,-900.0,0.00020606,2]
[334983718,1723711838702,-900.0,0.0002061,2]
[334983719,1723711838712,-500.0,0.0002064,2]
[334983720,1723711838721,-500.0,0.00020656,2]
[334983721,1723711838731,-189.58,0.00020712,2]
[334983722,1723711838741,-1613.0,0.00020748,2]
[334983723,1723711838751,-500.0,0.00020751,2]
[334983724,1723711838761,-1011.86,0.0002078,2]
[334983725,1723711838770,-500.0,0.00020787,2]
[334983726,1723711838780,-500.0,0.00020891,2]
[334983727,1723711838790,-146.03895902,0.00020931,2]
[334983728,1723711840128,-353.96104098,0.00020931,2]
[334983729,1723711840138,-570.93895802,0.00020969,2]
[334983730,1723711840149,-329.06104198,0.00020969,2]
[334983731,1723711840159,-500.0,0.00021025,2]
[334983732,1723711840168,-813.83845802,0.00021068,2]
[334983733,1723711840238,-86.16154198,0.00021068,2]
[334983734,1723711840248,-900.0,0.00021281,2]
[334983735,1723711840258,-500.0,0.00021358,2]
[334983736,1723711840269,-500.0,0.0002137,2]
[334983737,1723711840279,-300.0,0.00021649,2]
[334983738,1723711840290,-154.5,0.00021661,2]
[334983739,1723711840300,-900.0,0.00021668,2]
[334983740,1723711840310,-500.0,0.00021781,2]
[334983741,1723711840320,-500.0,0.00021827,2]
[334983742,1723711840332,-500.0,0.0002189,2]
[334983743,1723711840342,-548.32,0.00021918,2]
[334983744,1723711840352,-502.51,0.00021918,2]
[334983745,1723711840362,-155.69,0.00021918,2]
[334983746,1723711840372,-500.0,0.00021971,2]
[334983747,1723711840381,-500.0,0.00021991,2]
[334983748,1723711840391,-850.0,0.00022,2]
[334983749,1723711840401,-796.56499259,0.00022,2]
[334983750,1723711840410,-294.03724312,0.00022008,2]
[334983751,1723711840420,-500.0,0.00022068,2]
[334983752,1723711840430,-500.0,0.00022188,2]
[334983753,1723711840439,-1011.86,0.00022225,2]
[334983754,1723711840448,-5800.0,0.00022273,2]
[334983755,1723711840459,-1000.0,0.00022273,2]
[334983757,1723711840468,-1044.46193056,0.00022281,2]
[334983758,1723711840477,-5800.0,0.00022282,2]
[334983759,1723711840486,-5800.0,0.0002229,2]
[334983760,1723711840495,-500.0,0.00022328,2]
[334983761,1723711840504,-500.0,0.00022354,2]
[334983762,1723711840514,-203.91,0.00022387,2]
[334983764,1723711840524,-220.28,0.00022442,2]
[334983766,1723711840534,-1000.0,0.00022466,2]
[334983768,1723711840543,-500.0,0.00022479,2]
[334983770,1723711840552,-168.23,0.00022486,2]
[334983772,1723711840561,-900.0,0.00022489,2]
[334983774,1723711840570,-500.0,0.00022584,2]
[334983776,1723711840579,-500.0,0.00022669,2]
[334983778,1723711840588,-558.05532268,0.00022691,2]
[334983780,1723711840598,-2258.0,0.00022751,2]
[334983782,1723711840608,-500.0,0.00022806,2]
[334983784,1723711840618,-155.69,0.00022831,2]
[334983786,1723711840627,-152.0,0.00022849,3]
[334983788,1723711840636,-500.0,0.0002287,2]
[334983790,1723711840645,-200.0,0.00023,2]
[334983792,1723711840655,-189.58,0.00023014,2]
[334983794,1723711840664,-500.0,0.00023061,2]
[334983795,1723711840673,-500.0,0.00023081,2]
[334983797,1723711840684,-500.0,0.00023082,2]
[334983799,1723711840693,-808.77,0.00023096,2]
[334983801,1723711840703,-500.0,0.00023116,2]
[334983803,1723711840712,-367.34377443,0.00023179,2]
[334983805,1723711840722,-500.0,0.00023194,2]
[334983807,1723711840731,-180.0,0.00023205,2]
[334983809,1723711840740,-900.0,0.00023245,2]
[334983811,1723711840751,-500.0,0.0002328,2]
[334983813,1723711840760,-3107.0,0.000233,3]
[334983815,1723711840769,-500.0,0.00023337,2]
[334983817,1723711840778,-329.57,0.0002337,2]
[334983819,1723711840788,-256.63,0.0002337,2]
[334983821,1723711840797,-500.0,0.00023372,2]
[334983823,1723711840806,-900.0,0.00023417,2]
[334983825,1723711840815,-500.0,0.00023462,2]
[334983827,1723711840827,-500.0,0.00023498,2]
[334983829,1723711840837,-900.0,0.000236,2]
[334983831,1723711840847,-500.0,0.0002363,2]
[334983833,1723711840857,-748.53191575,0.00023635,2]
[334983835,1723711840866,-1942.2,0.0002367,2]
[334983837,1723711840875,-164.14081487,0.00023705,2]
[334983839,1723711840884,-901.76998133,0.00023725,2]
[334983840,1723711840893,-2500.0,0.00023725,2]
[334983842,1723711840902,-186.04530781,0.00023735,2]
[334983844,1723711840911,-1031.193146,0.00023735,2]
[334983846,1723711840921,-500.0,0.00023735,2]
[334983848,1723711840931,-217.0,0.00023735,2]
[334983849,1723711840940,-1003.8512,0.00023735,2]
[334983851,1723711840949,-5723.545,0.00023735,2]
[334983853,1723711840963,-155.69,0.00023744,2]
[334983855,1723711840972,-3000.0,0.000238,2]
[334983857,1723711840981,-901.76998133,0.00023808,2]
[334983859,1723711840990,-12817.9815052,0.00023815,3]
[334983861,1723711841000,-22265.110132,0.00023825,3]
[334983863,1723711841009,-186.04530776,0.0002383,2]
[334983865,1723711841019,-500.0,0.00023835,7]
[334983867,1723711841027,-500.0,0.00023835,7]
[334983869,1723711841038,-500.0,0.00023835,7]
[334983871,1723711841049,-500.0,0.00023835,7]
[334983873,1723711841058,-344.83240398,0.00023835,7]
[334983875,1723711841067,-500.0,0.00023835,7]
[334983877,1723711841076,-500.0,0.00023835,7]
[334983879,1723711841085,-445.91012172,0.00023835,7]
[334983881,1723711841095,-500.0,0.00023835,7]
[334983883,1723711841104,-500.0,0.00023835,7]
[334983885,1723711841113,-500.0,0.00023835,7]
[334983887,1723711841123,-501.18687497,0.00023835,7]
[334983889,1723711841132,-575.45688522,0.00023835,7]
[334983891,1723711841142,-502.56769436,0.00023835,7]
[334983893,1723711841151,-500.70167784,0.00023835,7]
[334983895,1723711841160,-376.36509245,0.00023835,7]
[334983897,1723711841169,-505.18996511,0.00023835,7]
[334983899,1723711841179,-500.33020766,0.00023835,7]
[334983901,1723711841188,-509.74787943,0.00023835,7]
[334983903,1723711841197,-513.70392331,0.00023835,7]
[334983905,1723711841207,-500.41525185,0.00023835,7]
[334983907,1723711841216,-502.75854621,0.00023835,7]
[334983909,1723711841225,-506.0363416,0.00023835,7]
[334983911,1723711841234,-506.36085634,0.00023835,7]
[334983913,1723711841243,-504.25715713,0.00023835,7]
[334983915,1723711841254,-510.86358297,0.00023835,7]
[334983917,1723711841263,-503.89981313,0.00023835,7]
[334983919,1723711841273,-502.51824878,0.00023835,7]
[334983921,1723711841283,-495.15525797,0.00023835,7]
[334983923,1723711841293,-503.71425705,0.00023835,7]
[334983925,1723711841303,-528.17709291,0.00023835,7]
[334983927,1723711841312,-500.0,0.00023835,7]
[334983929,1723711841322,-509.1972071,0.00023835,7]
[334983931,1723711841333,-516.77621069,0.00023835,7]
[334983933,1723711841342,-503.68609451,0.00023835,7]
[334983935,1723711841352,-504.02652196,0.00023835,7]
[334983937,1723711841361,-505.28001355,0.00023835,7]
[334983939,1723711841370,-506.43383878,0.00023835,7]
[334983941,1723711841380,-501.5583845,0.00023835,7]
[334983943,1723711841390,-502.01243477,0.00023835,7]
[334983945,1723711841400,-502.14552431,0.00023835,7]
[334983947,1723711841409,-504.33802208,0.00023835,7]
[334983949,1723711841418,-502.54250997,0.00023835,7]
[334983951,1723711841431,-501.26318548,0.00023835,7]
[334983954,1723711841444,-513.40527949,0.00023835,7]
[334983956,1723711841457,-501.36226293,0.00023835,7]
[334983959,1723711841469,-502.95009668,0.00023835,7]
[334983961,1723711841481,-500.56468324,0.00023835,7]
[334983963,1723711841494,-504.83948933,0.00023835,7]
[334983966,1723711841508,-502.53178117,0.00023835,7]
[334983968,1723711841521,-503.06770411,0.00023835,7]
[334983971,1723711841534,-501.7158013,0.00023835,7]
[334983973,1723711841546,-505.26172993,0.00023835,7]
[334983975,1723711841558,-500.38051612,0.00023835,7]
[334983978,1723711841571,-503.27961939,0.00023835,7]
[334983980,1723711841583,-502.4682739,0.00023835,7]
[334983982,1723711841596,-512.30673835,0.00023835,7]
[334983985,1723711841609,-507.02930703,0.00023835,7]
[334983987,1723711841621,-500.75152338,0.00023835,7]
[334983989,1723711841633,-513.5704042,0.00023835,7]
[334983992,1723711841644,-506.52437871,0.00023835,7]
[334983994,1723711841657,-507.31772925,0.00023835,7]
[334983996,1723711841670,-513.43458497,0.00023835,7]
[334983999,1723711841683,-500.0,0.00023835,7]
[334984001,1723711841696,-505.57449568,0.00023835,7]
[334984003,1723711841707,-502.8735833,0.00023835,7]
[334984005,1723711841717,-500.0,0.00023835,7]
[334984007,1723711841730,-507.24246433,0.00023835,7]
[334984009,1723711841741,-485.97527198,0.00023835,7]
[334984012,1723711841754,-500.0,0.00023835,7]
[334984014,1723711841766,-509.8170672,0.00023835,7]
[334984016,1723711841778,-503.40875302,0.00023835,7]
[334984019,1723711841790,-500.0,0.00023835,7]
[334984021,1723711841803,-500.0,0.00023835,7]
[334984023,1723711841816,-500.0,0.00023835,7]
[334984026,1723711841830,-507.68695075,0.00023835,7]
[334984028,1723711841840,-500.0,0.00023835,7]
[334984030,1723711841851,-508.88137241,0.00023835,7]
[334984032,1723711841862,-500.0,0.00023835,7]
[334984034,1723711841872,-518.08951613,0.00023835,7]
[334984035,1723711841884,-508.36471188,0.00023835,7]
[334984036,1723711841897,-500.0,0.00023835,7]
[334984037,1723711841909,-474.70060558,0.00023835,7]
[334984038,1723711841920,-504.37170426,0.00023835,7]
[334984039,1723711841930,-500.0,0.00023835,7]
[334984040,1723711841944,-525.05176186,0.00023835,7]
[334984041,1723711841955,-504.02832074,0.00023835,7]
[334984042,1723711841972,-508.05298159,0.00023835,7]
[334984043,1723711841984,-550.71859457,0.00023835,7]
[334984044,1723711841995,-500.0,0.00023835,7]
[334984045,1723711842006,-500.0,0.00023835,7]
[334984047,1723711842017,-501.27583036,0.00023835,7]
[334984049,1723711842028,-506.24873276,0.00023835,7]
[334984051,1723711842041,-503.23511951,0.00023835,7]
[334984053,1723711842052,-500.0,0.00023835,7]
[334984055,1723711842063,-500.78627987,0.00023835,7]
[334984058,1723711842075,-500.0,0.00023835,7]
[334984060,1723711842086,-518.12855408,0.00023835,7]
[334984062,1723711842100,-238.50092329,0.00023835,7]
[334984064,1723711842111,-500.0,0.00023835,7]
[334984066,1723711842123,-511.83115526,0.00023835,7]
[334984069,1723711842134,-500.0,0.00023835,7]
[334984071,1723711842146,-500.58551851,0.00023835,7]
[334984073,1723711842157,-504.57499349,0.00023835,7]
[334984075,1723711842169,-508.00300267,0.00023835,7]
[334984077,1723711842180,-500.0,0.00023835,7]
[334984079,1723711842192,-277.03059946,0.00023835,7]
[334984081,1723711842203,-514.77155816,0.00023835,7]
[334984084,1723711842214,-625.30253851,0.00023835,7]
[334984086,1723711842226,-506.76422007,0.00023835,7]
[334984088,1723711842237,-500.0,0.00023835,7]
[334984090,1723711842248,-513.33318541,0.00023835,7]
[334984092,1723711842260,-507.40329564,0.00023835,7]
[334984094,1723711842272,-527.45726258,0.00023835,7]
[334984097,1723711842283,-500.0,0.00023835,7]
[334984099,1723711842293,-526.44193565,0.00023835,7]
[334984101,1723711842305,-513.74644521,0.00023835,7]
[334984103,1723711842316,-511.33966499,0.00023835,7]
[334984105,1723711842329,-500.0,0.00023835,7]
[334984108,1723711842340,-450.494169,0.00023835,7]
[334984110,1723711842351,-511.99742934,0.00023835,7]
[334984112,1723711842362,-500.0,0.00023835,7]
[334984114,1723711842373,-515.13626123,0.00023835,7]
[334984116,1723711842385,-506.66953095,0.00023835,7]
[334984118,1723711842396,-512.40103583,0.00023835,7]
[334984120,1723711842407,-483.94635413,0.00023835,7]
[334984122,1723711842418,-500.0,0.00023835,7]
[334984125,1723711842430,-507.93769206,0.00023835,7]
[334984127,1723711842442,-500.0,0.00023835,7]
[334984129,1723711842453,-511.49960111,0.00023835,7]
[334984131,1723711842465,-507.5397615,0.00023835,7]
[334984133,1723711842476,-518.47433012,0.00023835,7]
[334984136,1723711842487,-514.34552206,0.00023835,7]
[334984138,1723711842498,-502.41381342,0.00023835,7]
[334984140,1723711842509,-500.0,0.00023835,7]
[334984142,1723711842520,-294.76045366,0.00023835,7]
[334984144,1723711842532,-500.0,0.00023835,7]
[334984146,1723711842544,-511.49918991,0.00023835,7]
[334984148,1723711842556,-505.78220096,0.00023835,7]
[334984150,1723711842567,-503.12474966,0.00023835,7]
[334984152,1723711842578,-500.0,0.00023835,7]
[334984155,1723711842590,-508.40216646,0.00023835,7]
[334984157,1723711842602,-500.0,0.00023835,7]
[334984159,1723711842614,-504.19030652,0.00023835,7]
[334984161,1723711842625,-510.95048721,0.00023835,7]
[334984163,1723711842637,-200.45476653,0.00023835,7]
[334984165,1723711842649,-500.0,0.00023835,7]
[334984168,1723711842662,-1000.0,0.00023835,7]
[334984170,1723711842674,-500.0,0.00023835,7]
[334984172,1723711842688,-1010.41853644,0.00023835,7]
[334984174,1723711842700,-500.0,0.00023835,7]
[334984176,1723711842712,-500.0,0.00023835,7]
[334984179,1723711842724,-504.18207169,0.00023835,7]
[334984181,1723711842735,-500.0,0.00023835,7]
[334984183,1723711842747,-500.0,0.00023835,7]
[334984185,1723711842761,-500.0,0.00023835,7]
[334984188,1723711842773,-516.92615872,0.00023835,7]
[334984190,1723711842784,-500.0,0.00023835,7]
[334984192,1723711842795,-502.05315546,0.00023835,7]
[334984194,1723711842807,-500.0,0.00023835,7]
[334984196,1723711842819,-519.79640074,0.00023835,7]
[334984198,1723711842831,-503.50922803,0.00023835,7]
[334984200,1723711842843,-512.61747335,0.00023835,7]
[334984203,1723711842855,-500.0,0.00023835,7]
[334984205,1723711842867,-500.0,0.00023835,7]
[334984207,1723711842879,-500.0,0.00023835,7]
[334984209,1723711842891,-500.0,0.00023835,7]
[334984212,1723711842902,-500.0,0.00023835,7]
[334984216,1723711842915,-500.0,0.00023835,7]
[334984219,1723711842927,-500.0,0.00023835,7]
[334984221,1723711842939,-506.97622906,0.00023835,7]
[334984223,1723711842951,-500.0,0.00023835,7]
[334984225,1723711842966,-503.79322104,0.00023835,7]
[334984228,1723711842978,-508.82074473,0.00023835,7]
[334984231,1723711842990,-500.0,0.00023835,7]
[334984233,1723711843002,-508.56960552,0.00023835,7]
[334984235,1723711843015,-500.0,0.00023835,7]
[334984237,1723711843028,-503.99928219,0.00023835,7]
[334984240,1723711843043,-500.0,0.00023835,7]
[334984242,1723711843057,-500.0,0.00023835,7]
[334984244,1723711843069,-500.0,0.00023835,7]
[334984247,1723711843080,-500.0,0.00023835,7]
[334984249,1723711843092,-500.0,0.00023835,7]
[334984251,1723711843105,-504.37897487,0.00023835,7]
[334984253,1723711843116,-512.15269318,0.00023835,7]
[334984255,1723711843127,-514.20905503,0.00023835,7]
[334984257,1723711843138,-500.0,0.00023835,7]
[334984259,1723711843149,-500.0,0.00023835,7]
[334984261,1723711843161,-511.73330576,0.00023835,7]
[334984263,1723711843173,-524.61118414,0.00023835,7]
[334984265,1723711843186,-355.51697103,0.00023835,7]
[334984268,1723711843205,-504.06266883,0.00023835,7]
[334984270,1723711843216,-503.00486382,0.00023835,7]
[334984272,1723711843228,-400.0,0.00023835,7]
[334984274,1723711843239,-404.69791563,0.00023835,7]
[334984276,1723711843251,-503.13390877,0.00023835,7]
[334984279,1723711843263,-500.0,0.00023835,7]
[334984281,1723711843274,-511.75520813,0.00023835,7]
[334984283,1723711843285,-520.44556324,0.00023835,7]
[334984285,1723711843296,-513.62512603,0.00023835,7]
[334984287,1723711843308,-502.87582929,0.00023835,7]
[334984289,1723711843319,-512.33304794,0.00023835,7]
[334984292,1723711843330,-500.0,0.00023835,7]
[334984294,1723711843342,-513.10450432,0.00023835,7]
[334984296,1723711843353,-568.14210249,0.00023835,7]
[334984298,1723711843365,-506.68595686,0.00023835,7]
[334984300,1723711843376,-500.0,0.00023835,7]
[334984302,1723711843387,-506.72932697,0.00023835,7]
[334984305,1723711843401,-513.86248064,0.00023835,7]
[334984333,1723711843602,-490.84474539,0.00023835,7]
[334984337,1723711843681,-515.92571331,0.00023835,7]
[334984339,1723711843693,-236.38468612,0.00023835,7]
[334984341,1723711843703,-510.53101908,0.00023835,7]
[334984343,1723711843712,-500.0,0.00023835,2]
[334984345,1723711843723,-508.67351115,0.00023835,7]
[334984347,1723711843732,-504.95480442,0.00023835,7]
[334984348,1723711843742,-506.02815568,0.00023835,7]
[334984349,1723711843751,-592.49248734,0.00023835,7]
[334984350,1723711843760,-525.65213034,0.00023835,7]
[334984351,1723711843769,-500.0,0.00023835,7]
[334984352,1723711843779,-500.0,0.00023835,7]
[334984353,1723711843788,-500.0,0.00023835,7]
[334984354,1723711843797,-362.19715509,0.00023835,7]
[334984355,1723711843806,-506.83080623,0.00023835,7]
[334984356,1723711843815,-500.0,0.00023835,7]
[334984357,1723711843825,-500.0,0.00023835,7]
[334984358,1723711843834,-500.0,0.00023835,7]
[334984359,1723711843843,-500.0,0.00023835,7]
[334984360,1723711843852,-500.0,0.00023835,7]
[334984361,1723711843861,-411.14187231,0.00023835,7]
[334984362,1723711843871,-527.19397608,0.00023835,7]